Cogmind - Beta 15 *** ADVENTURER MODE // 2025.10.06 @ 17:42:02 Player: Gentle Jesus Result: Self-destructed Performance ------------- Evolutions (8) 4000 Regions Visited (17) 3400 Robots Destroyed (148) 740 Value Destroyed (7667) 7667 Prototype IDs (17) 340 Alien Tech Used (2) 400 Bonus (9906) 9906 TOTAL SCORE: 26453 Bonus ------- High Alert Combat Kills 417 Follower Combat Kills 2316 Registered with UFD 300 Met Optimus in HQ 500 Met Data Miner 300 Met Zhirov 300 Built Enhanced Grunts 300 A7 Reached Mainframe 300 Met R17 at Cetus 500 Used Core Reset Matrix 3000 Met R17 at Research 2000 Friendly Fire -327 Cogmind --------- Core Integrity 40/1450 Matter 550/550 Energy 142/150 System Corruption 10% Temperature Cool (0) Movement Walking (260) Ox2 Location -2/Quarantine Parts ------- > --- POWER (2) -------- Micro Antimatter Reactor > --- PROPULSION (7) --- Myomer Leg Myomer Leg > --- UTILITY (11) ----- Advanced Heat Sink (fused) High-capacity Storage Unit Matter Compressor Enhanced Optical Array Enhanced Optical Array Advanced Signal Interpreter Advanced Target Analyzer Quantum Capacitor > --- WEAPON (3) ------- Gamma Rifle > --- INVENTORY (20) --- Small Battery (100) Peak State ------------ > --- POWER ------------ Enhanced Fission Core Micro Antimatter Reactor > --- PROPULSION ------- Myomer Leg Shield Leg Biometal Leg Biometal Leg Biometal Leg Biometal Leg Centrium Leg > --- UTILITY ---------- Advanced Heat Sink High-capacity Storage Unit Matter Compressor Enhanced Optical Array Advanced Sensor Array Advanced Signal Interpreter Advanced Signal Interpreter Advanced Targeting Computer Advanced Target Analyzer Improved Core Shielding Experimental Thermal Shield > --- WEAPON ----------- Cooled Plasma Rifle Hardcell Cannon Linear Accelerator > --- INVENTORY -------- Light Fission Core Neutrino Core Mini Fusion Reactor Particle Reactor Particle Reactor Micro Antimatter Reactor Light Quantum Reactor Flexi-carbon Leg Myomer Leg Myomer Leg Myomer Leg Shield Leg Advanced Heat Sink Enhanced Optical Array Improved Cloaking Device Gamma Rifle Micro-nuke Launcher [Rating: 158] Favorites ----------- Power Light Nuclear Core Engine Improved Ion Engine Power Core Light Nuclear Core Reactor Particle Reactor Propulsion Aluminum Leg Treads Biometal Heavy Treads Leg Aluminum Leg Utility Enhanced Optical Array Device Advanced Heat Sink Storage Medium Storage Unit Processor Enhanced Optical Array Hackware Hacking Suite Protection Layered Medium Armor Plating Weapon Heavy Plasma Cannon Energy Gun EM Pulse Gun Energy Cannon Heavy Plasma Cannon Ballistic Gun Barrage Gun Ballistic Cannon Heavy Gauss Cannon Launcher Long-range Missile Launcher Build | -11 -10 -10 -9 -6 -6 -6 -6 -5 -5 -5 -5 -5 -5 -4 -3 -2 -2 ------- Run | Yrd Mat Sub Scr Fac Low Low Dat Pro Fac Ext Cet Arc Hub Fac Res Res Qua Slots Evolved 16 | . . . . 8 . . . . 2 . . . . 2 2 2 . Power 1 | . . . . 1 . . . . . . . . . . . . . Propulsion 5 | . . . . 4 . . . . 1 . . . . . . . . Utility 9 | . . . . 3 . . . . 1 . . . . 2 1 2 . Weapon 1 | . . . . . . . . . . . . . . . 1 . . Parts Attached 152 | 7 . 2 6 11 . 2 . 1 3 18 2 . 2 15 23 46 14 Power 25 | 1 . . 1 1 . . . 1 1 3 . . 2 1 4 8 2 Engine 4 | 1 . . 1 . . . . 1 . 1 . . . . . . . Core 8 | . . . . 1 . . . . 1 2 . . 2 . 2 . . Reactor 13 | . . . . . . . . . . . . . . 1 2 8 2 Propulsion 57 | 2 . 1 1 5 . . . . . 13 1 . . 7 11 14 2 Treads 7 | . . . . . . . . . . . . . . . . 7 . Leg 50 | 2 . 1 1 5 . . . . . 13 1 . . 7 11 7 2 Wheel . | . . . . . . . . . . . . . . . . . . Hover . | . . . . . . . . . . . . . . . . . . Flight . | . . . . . . . . . . . . . . . . . . Utility 43 | 2 . . 1 3 . . . . 2 2 1 . . 4 7 17 4 Device 21 | 1 . . . 2 . . . . 1 1 . . . 2 2 9 3 Storage 7 | 1 . . 1 . . . . . . 1 1 . . 1 2 . . Processor 7 | . . . . 1 . . . . 1 . . . . . . 4 1 Hackware 1 | . . . . . . . . . . . . . . . 1 . . Protection 7 | . . . . . . . . . . . . . . 1 2 4 . Artifact . | . . . . . . . . . . . . . . . . . . Weapon 27 | 2 . 1 3 2 . 2 . . . . . . . 3 1 7 6 Energy Gun 5 | 1 . . . . . . . . . . . . . . . 2 2 Energy Cannon 9 | . . . 2 1 . 2 . . . . . . . . 1 1 2 Ballistic Gun 2 | 1 . 1 . . . . . . . . . . . . . . . Ballistic Cannon 8 | . . . . . . . . . . . . . . 2 . 4 2 Launcher 3 | . . . 1 1 . . . . . . . . . 1 . . . Special Weapon . | . . . . . . . . . . . . . . . . . . Impact Weapon . | . . . . . . . . . . . . . . . . . . Slashing Weapon . | . . . . . . . . . . . . . . . . . . Piercing Weapon . | . . . . . . . . . . . . . . . . . . Special Melee Weapon . | . . . . . . . . . . . . . . . . . . Unidentified Prototypes 8 | . . . . . . . . . . . . . . 1 2 4 1 Corrupted Parts 1 | . . . . . . . . . . . . . . . . . 1 System Corruption 2 | . . . . . . . . . . . . . . . . . 2 Parts Lost 87 | . . 2 . 1 . . . . 3 6 3 . . 3 5 51 13 Power 18 | . . . . . . . . . 1 . 1 . . 1 2 10 3 Propulsion 30 | . . 1 . 1 . . . . 2 5 1 . . 1 1 16 2 Utility 21 | . . . . . . . . . . 1 . . . 1 2 14 3 Weapon 18 | . . 1 . . . . . . . . 1 . . . . 11 5 Highest Loss Streak 18 | . . 2 . 1 . . . . 3 3 3 . . 2 2 18 8 To Critical Strikes 3 | . . . . . . . . . . 1 . . . . . 2 . Average Backups 9 | . 1 6 7 7 10 10 10 10 7 9 8 8 8 13 13 12 2 Power 2 | . . 1 1 . 1 1 1 1 1 2 1 1 1 3 2 4 . Propulsion 2 | . 1 3 3 . 1 1 1 1 . 1 2 2 2 4 3 3 . Utility 3 | . . . 1 3 5 5 5 5 4 4 3 4 4 2 4 3 1 Weapon 2 | . . . 2 2 3 3 3 3 2 2 1 1 1 2 2 1 . Tool/Special . | . . . . . . . . . . . . . . . . . . Unused Backups 10 | . . . 3 . 1 . . . . 3 1 . . . 1 . 1 Power 2 | . . . . . . . . . . 2 . . . . . . . Propulsion 3 | . . . . . . . . . . 1 1 . . . 1 . . Utility 3 | . . . 1 . 1 . . . . . . . . . . . 1 Weapon 2 | . . . 2 . . . . . . . . . . . . . . Tool/Special . | . . . . . . . . . . . . . . . . . . Average Slot Usage (%) 94 | . 100 96 92 99 100 100 100 100 96 94 99 100 100 97 98 85 55 Engine 4 | . 14 14 14 6 6 6 6 6 4 . 5 5 3 . 1 . . Core 4 | . . . . 6 6 6 6 6 5 10 5 5 6 5 1 3 . Reactor 2 | . . . . . . . . . . . . . . 4 5 4 6 Leg 32 | . 28 27 28 39 40 40 40 40 38 37 40 41 41 35 32 18 1 Device 15 | . 14 14 14 19 20 20 20 20 17 14 11 11 11 14 14 11 9 Storage 8 | . 14 14 14 6 6 6 6 6 5 5 11 11 11 10 9 8 8 Processor 8 | . . . . 5 6 6 6 6 9 11 11 11 11 10 9 13 14 Protection 1 | . . . . . . . . . . . . . . 4 3 6 1 Energy Cannon 8 | . . . 14 12 13 13 13 13 11 10 6 11 11 3 7 3 1 Ballistic Gun 1 | . 14 14 6 . . . . . . . . . . . . . . Ballistic Cannon 2 | . . . . . . . . . . . . . . 6 5 6 2 Peak Build Rating 158 | 7 7 10 19 48 49 51 51 53 59 78 80 79 80 108 135 158 133 Average Rating 75 | 5 7 9 13 43 48 50 51 51 55 69 78 79 79 100 127 138 101 On Entrance 54 | . 7 7 9 19 48 49 51 51 53 57 75 79 79 80 96 133 82 Naked Turns . | . . . . . . . . . . . . . . . . . . Heaviest Build 126 | 14 14 16 38 45 45 45 45 48 57 57 58 56 56 82 125 126 102 Greatest Support 250 | 20 20 20 23 83 83 83 83 83 93 135 135 135 135 155 181 250 170 Greatest Overweight (x) 2 | . . . 1 . . . . . . . . . . . . 1 2 Average Overweight (x) . | . . . . . . . . . . . . . . . . . . Largest Inventory Capacity 20 | 8 8 8 10 10 10 10 10 10 10 10 10 10 10 15 20 20 20 Average Capacity 12 | 7 8 8 9 10 10 10 10 10 10 10 10 10 10 14 15 20 20 Most Carried 20 | . 5 7 9 10 10 10 10 10 10 10 9 8 10 15 16 20 4 Average Carried 9 | . 1 6 7 7 10 10 10 10 7 9 8 8 8 13 13 12 2 Final Capacity 20 | 8 8 8 10 10 10 10 10 10 10 10 10 10 10 15 20 20 20 Final Carried 16 | . 5 6 9 10 10 10 10 10 9 10 8 8 10 15 16 3 1 Class Distribution -------------------- 40% | Mutant 30% | Scavenger-Mutant 12% | Hacker-Tank 6% | Commander-Mutant 4% | Scavenger-Tank Dominant Class ---------------- Mutant | -10/Materials Mutant | -10/Subcaves Mutant | -9/Scraptown Scavenger-Mutant | -6/Factory Mutant | -6/Lower Caves Mutant | -6/Lower Caves Mutant | -6/Data Miner Mutant | -5/Proximity Caves Mutant | -5/Factory Scavenger-Mutant | -5/Extension Commander-Mutant | -5/Cetus Commander-Mutant | -5/Archives Scavenger-Mutant | -5/Hub_04(d) Scavenger-Mutant | -4/Factory Hacker-Tank | -3/Research Hacker-Tank | -2/Research Mutant | -2/Quarantine Resources | -11 -10 -10 -9 -6 -6 -6 -6 -5 -5 -5 -5 -5 -5 -4 -3 -2 -2 ----------- Run | Yrd Mat Sub Scr Fac Low Low Dat Pro Fac Ext Cet Arc Hub Fac Res Res Qua Matter Collected 5430 | 273 1 50 295 282 257 . . 53 40 230 228 . 22 552 712 1704 731 Remotely . | . . . . . . . . . . . . . . . . . . Salvage Created 5713 | 25 . 60 130 717 . . . 96 124 644 20 . . 548 880 1765 704 Parts 262 | 4 . 1 11 39 . . . 6 4 22 2 . . 37 32 73 31 Haulers Intercepted 1 | . . . . . . . . . . . . . . . . 1 . Recyclers Shooed 8 | . . . . . . . . . . 2 . . . . 1 4 1 Parts Field Recycled . | . . . . . . . . . . . . . . . . . . Retrieved Matter . | . . . . . . . . . . . . . . . . . . Parts Self-Destructed 6 | . . . . . . . . 6 . . . . . . . . . Prevented . | . . . . . . . . . . . . . . . . . . Kills | -11 -10 -10 -9 -6 -6 -6 -6 -5 -5 -5 -5 -5 -5 -4 -3 -2 -2 ------- Run | Yrd Mat Sub Scr Fac Low Low Dat Pro Fac Ext Cet Arc Hub Fac Res Res Qua Combat Hostiles Destroyed 111 | . . 1 3 17 . . . 3 2 9 1 . . 15 20 33 7 Guns 2 | . . 1 . . . . . . . . . . . . . 1 . Cannons 89 | . . . 2 12 . . . 3 2 8 1 . . 9 18 28 6 AOE 16 | . . . 1 4 . . . . . 1 . . . 6 1 3 . Classes Destroyed 23 | 1 . 1 2 7 . . . 1 . 4 . . . 2 2 3 . Worker 10 | . . . . . . . . . . . . . . 2 . 8 . Builder 10 | . . . . 3 . . . . . 1 . . . . . 6 . Tunneler 1 | 1 . . . . . . . . . . . . . . . . . Hauler 1 | . . . . . . . . . . . . . . . . 1 . Recycler 6 | . . . . . . . . . . 1 . . . . . 3 2 Mechanic 1 | . . . . . . . . . . . . . . 1 . . . Operator 1 | . . . . . . . . . . 1 . . . . . . . Drone 2 | . . . . . . . . 2 . . . . . . . . . Watcher 7 | . . . . 2 . . . . . . 2 . . 1 2 . . Swarmer 25 | . . . . 4 . . . . . 2 . . . 5 9 4 1 Grunt 20 | . . . . 7 . . . . 1 3 . . . 2 6 1 . Brawler 2 | . . . . 2 . . . . . . . . . . . . . Sentry 10 | . . . . 1 . . . 1 1 1 . . . 1 1 4 . Demolisher 1 | . . . . . . . . . . . . . . . 1 . . Specialist 4 | . . . . . . . . . . . . . . . . 1 3 Hunter 12 | . . . . . . . . . . 1 . . . 1 2 8 . Programmer 26 | . . . . 3 . . . . . . . . . 6 . 14 3 Heavy 1 | . . . . . . . . . . . . . . . . 1 . Behemoth 1 | . . . . . . . . . . 1 . . . . . . . Cetus Guard 1 | . . . . . . . . . . . 1 . . . . . . Striker 1 | . . . . . . . . . . . . . . . 1 . . Subdweller 1 | . . 1 . . . . . . . . . . . . . . . Guru 2 | . . . 2 . . . . . . . . . . . . . . Scrapper 1 | . . . 1 . . . . . . . . . . . . . . Thug 1 | . . . . . . . . . . 1 . . . . . . . Best Kill Streak 14 | 1 . 1 3 7 . . . 2 1 3 2 . . 4 8 14 4 Combat Bots Only 7 | . . 1 3 4 . . . 2 1 3 1 . . 4 7 5 4 Max Kills in Single Turn 4 | 1 . 1 1 2 . . . 1 1 1 1 . . 4 2 3 1 Gunslinging . | . . . . . . . . . . . . . . . . . . Exploded 4 | . . . 1 2 . . . . . 1 . . . 4 1 3 . Melee . | . . . . . . . . . . . . . . . . . . Uniques/NPCs Destroyed . | . . . . . . . . . . . . . . . . . . Combat | -11 -10 -10 -9 -6 -6 -6 -6 -5 -5 -5 -5 -5 -5 -4 -3 -2 -2 -------- Run | Yrd Mat Sub Scr Fac Low Low Dat Pro Fac Ext Cet Arc Hub Fac Res Res Qua Hostile Shots Fired 1849 | . 5 17 10 75 6 . . 14 12 88 33 . 3 74 97 815 600 Missed 629 | . 3 6 3 31 1 . . 7 5 34 12 . 2 14 29 227 255 Hits 1220 | . 2 11 7 44 5 . . 7 7 54 21 . 1 60 68 588 345 Melee 3 | . . . 2 1 . . . . . . . . . . . . . Projectile 1217 | . 2 11 5 43 5 . . 7 7 54 21 . 1 60 68 588 345 AOE 14 | . . 6 . . . . . . . . . . . 1 7 . . Critical Strikes 60 | . . . . 3 . . . . . 5 4 . . 2 1 37 8 Actively Blocked 4 | . . . . . . . . . . . . . . . . 4 . Part Disruptions 10 | . . . . 1 . . . . . . . . . . . 6 3 Damage Taken 18994 | . 17 360 126 562 58 . . 97 125 971 332 . 13 1266 1443 10944 2680 Core 1829 | . . 69 42 76 . . . . . 104 . . . 117 47 1000 374 Absorbed by Shields 180 | . . . . . . . . . . 56 124 . . . . . . Reduced by Siege Mode 271 | . . . . . . . . . . . . . . . . 271 . Redirected to Shielding 388 | . . . . . . . . . . . . . . . . 375 13 Ignored by Resistances 5615 | . 5 99 34 160 16 . . 27 34 289 124 . 4 341 500 3049 933 Core Remaining (%) 86 | 100 . . 55 . . . . 91 . . . . 89 89 96 . . Volleys Fired 420 | 3 1 10 5 50 . 6 . 13 15 42 11 . 2 48 43 134 37 Largest 3 | 2 2 2 2 2 . 2 . 2 2 2 2 . 2 2 3 3 2 Hottest 254 | 60 60 68 180 180 . 180 . 180 180 180 133 . 180 180 254 254 204 Shots Fired 816 | 6 2 19 10 87 . 12 . 26 27 84 16 . 4 86 96 289 52 Gun 49 | 6 2 19 . . . . . . . . . . . . . 12 10 Cannon 731 | . . . 8 78 . 12 . 26 27 81 5 . 4 80 95 273 42 Launcher 36 | . . . 2 9 . . . . . 3 11 . . 6 1 4 . Special . | . . . . . . . . . . . . . . . . . . Kinetic 336 | 3 1 10 . . . . . . . . . . . 51 60 189 22 Thermal 400 | . . . 8 78 . 12 . 26 27 81 5 . 4 29 35 95 . Explosive 36 | . . . 2 9 . . . . . 3 11 . . 6 1 4 . Electromagnetic 44 | 3 1 9 . . . . . . . . . . . . . 1 30 Robot Hit Streak 36 | 6 1 12 16 12 . . . 9 11 30 19 . 23 25 12 36 19 Robot Miss Streak 7 | . 1 1 2 4 . . . 7 2 2 . . . 2 2 2 2 Penetration Max 1 | . . . . . . . . . . . . . . . 1 1 . Secondary Targets . | . . . . . . . . . . . . . . . . . . Capacitor 12 | . . . . . . . . . . . . . . . . . 12 Shots Hit Robots 504 | 6 1 17 5 46 . . . 11 11 69 13 . 4 40 58 177 46 Core Hits 273 | 2 . 3 3 32 . . . 4 4 26 36 . 1 26 28 82 26 Critical Kills 4 | . . . . 1 . . . . . 1 . . . . 1 1 . Critical Parts Destroyed . | . . . . . . . . . . . . . . . . . . Critical Strikes 40 | . . 3 . 1 . . . . . 1 . . . 3 8 21 3 Burn 2 | . . . . . . . . . . . . . . . . 2 . Meltdown 4 | . . . . 1 . . . . . 1 . . . . 1 1 . Destroy 1 | . . 1 . . . . . . . . . . . . . . . Blast 30 | . . . . . . . . . . . . . . 3 7 18 2 Corrupt 3 | . . 2 . . . . . . . . . . . . . . 1 Melee Attacks . | . . . . . . . . . . . . . . . . . . Impact . | . . . . . . . . . . . . . . . . . . Slashing . | . . . . . . . . . . . . . . . . . . Piercing . | . . . . . . . . . . . . . . . . . . Sneak Attacks . | . . . . . . . . . . . . . . . . . . Combat Hostiles . | . . . . . . . . . . . . . . . . . . Follow-up Attacks . | . . . . . . . . . . . . . . . . . . Damage Inflicted 23335 | 84 8 105 332 2534 . . . 377 382 2744 1499 . 134 2634 2354 8693 1455 Guns 531 | 57 8 105 . . . . . . . . . . . . . 144 217 Cannons 17498 | . . . 126 1489 . . . 377 382 2460 172 . 134 1635 2193 7292 1238 Explosions 5073 | 27 . . 206 1045 . . . . . 284 1327 . . 944 161 1079 . Melee . | . . . . . . . . . . . . . . . . . . Ramming 233 | . . . . . . . . . . . . . . 55 . 178 . Kinetic 9339 | 16 8 47 . . . . . . . . . . . 974 1615 5915 764 Thermal 7927 | 27 . . 126 1489 . . . 377 382 2460 172 . 134 661 578 1521 . Explosive 5046 | . . . 206 1045 . . . . . 284 1327 . . 944 161 1079 . Electromagnetic 790 | 41 . 58 . . . . . . . . . . . . . . 691 Impact . | . . . . . . . . . . . . . . . . . . Slashing . | . . . . . . . . . . . . . . . . . . Piercing . | . . . . . . . . . . . . . . . . . . Highest Corruption 38 | . . . . 2 3 3 3 3 . . . . . 1 4 38 38 Average Corruption 8 | . . . . 2 2 3 3 3 . . . . . 1 3 22 9 Corruption Purged . | . . . . . . . . . . . . . . . . . . Corruption Blocked . | . . . . . . . . . . . . . . . . . . Effects 119 | . . . . 1 3 6 4 12 . . . . . 1 25 58 9 Message Errors 20 | . . . . . 1 . . 2 . . . . . . 5 11 1 Matter Fused 31 | . . . . . 1 1 1 1 . . . . . 1 11 12 3 Heat Flow Errors 15 | . . . . . . 1 1 2 . . . . . . 4 6 1 Energy Discharges 10 | . . . . . 1 2 . . . . . . . . 2 5 . Parts Rejected 3 | . . . . . . . . . . . . . . . 1 2 . Parts Fused 4 | . . . . . . . . 1 . . . . . . . 1 2 Data Loss (minor) 15 | . . . . 1 . . 2 5 . . . . . . 1 4 2 Data Loss (major) 4 | . . . . . . . . 1 . . . . . . 1 2 . Misfires 3 | . . . . . . 1 . . . . . . . . . 2 . Alerts 3 | . . . . . . 1 . . . . . . . . . 2 . Misdirections 3 | . . . . . . . . . . . . . . . . 3 . Weapon Failures 8 | . . . . . . . . . . . . . . . . 8 . Overload Shots 1 | . . . . . . . . . . . . . . . . 1 . Overflow Damage 776 | . . . . 175 . . . . . 42 4 . . 100 29 411 15 Projectiles 568 | . . . . 97 . . . . . 29 . . . 91 29 307 15 Explosions 197 | . . . . 78 . . . . . 13 4 . . 7 . 95 . Melee 11 | . . . . . . . . . . . . . . 2 . 9 . Knockbacks 80 | . . . . . . . . . . . . . . 3 11 54 12 Impact 2 | . . . . . . . . . . . . . . . . 2 . Kinetic 67 | . . . . . . . . . . . . . . 3 10 43 11 Secondary 11 | . . . . . . . . . . . . . . . 1 9 1 Self-Inflicted Damage 101 | . . . . 101 . . . . . . . . . . . . . Shots 4 | . . . . 4 . . . . . . . . . . . . . Rammed . | . . . . . . . . . . . . . . . . . . Targets Rammed 7 | . . . . . . . . . . . . . . 2 . 5 . Kicked 6 | . . . . . . . . . . . . . . 2 . 4 . Crushed 1 | . . . . . . . . . . . . . . . . 1 . Highest Temperature 685 | 20 20 . 366 251 . 154 182 257 153 350 . . . 51 394 685 259 Average Temperature 113 | 13 15 . 176 66 . 50 107 105 60 119 . . . 31 105 136 110 Received Heat Transfer 1993 | . 12 48 60 99 . . . 18 36 137 18 . . 132 81 1307 45 Effects 29 | . . . 4 . . . . . . . . . . . 4 21 . Shutdowns 6 | . . . . . . . . . . . . . . . 1 5 . Energy Bleed 4 | . . . 1 . . . . . . . . . . . . 3 . Interference 11 | . . . 3 . . . . . . . . . . . 3 5 . Matter Decay 2 | . . . . . . . . . . . . . . . . 2 . Short Circuit 2 | . . . . . . . . . . . . . . . . 2 . Damage (minor) 1 | . . . . . . . . . . . . . . . . 1 . Damage (major) 2 | . . . . . . . . . . . . . . . . 2 . Damage (core) 1 | . . . . . . . . . . . . . . . . 1 . Siege Activations 3 | . . . . . . . . . . . . . . . . 3 . Total Turns 34 | . . . . . . . . . . . . . . . . 34 . Longest Duration 19 | . . . . . . . . . . . . . . . . 19 . Martial Activations . | . . . . . . . . . . . . . . . . . . Shielding Activations . | . . . . . . . . . . . . . . . . . . Robots Disrupted . | . . . . . . . . . . . . . . . . . . Combat Hostiles . | . . . . . . . . . . . . . . . . . . Robots Corrupted 2 | . . . . . . . . . . . . . . . . 1 1 Combat Hostiles 1 | . . . . . . . . . . . . . . . . . 1 Parts Fried 4 | . . 1 . . . . . . . . . . . . . 2 1 Impact Corruptions 3 | . . . . . . . . . . . . . . 1 . 2 . Robots Melted 4 | . . . . 1 . . . . . 1 . . . . 1 1 . Combat Hostiles 3 | . . . . 1 . . . . . . . . . . 1 1 . Parts Melted 24 | . . . 2 6 . . . 2 2 4 . . . 1 4 3 . Heat Transferred 9381 | 50 . . 187 2100 . . . 407 407 2497 185 . 148 703 594 2103 . Parts Sabotaged . | . . . . . . . . . . . . . . . . . . Parts Stolen . | . . . . . . . . . . . . . . . . . . Parts Stripped . | . . . . . . . . . . . . . . . . . . Power Chain Reactions 1 | 1 . . . . . . . . . . . . . . . . . Alert | -11 -10 -10 -9 -6 -6 -6 -6 -5 -5 -5 -5 -5 -5 -4 -3 -2 -2 ------- Run | Yrd Mat Sub Scr Fac Low Low Dat Pro Fac Ext Cet Arc Hub Fac Res Res Qua Maximum Alert Level 3 | . . . . . . . . . 1 1 1 . 2 2 3 2 . Low Security (%) 53 | 100 100 . . 100 . . . . 12 61 81 100 42 14 14 38 100 Level 1 26 | . . . . . . . . . 87 38 18 . 26 17 21 60 . Level 2 18 | . . . . . . . . . . . . . 31 67 54 1 . Level 3 1 | . . . . . . . . . . . . . . . 10 . . Level 4 . | . . . . . . . . . . . . . . . . . . Level 5 . | . . . . . . . . . . . . . . . . . . High Security . | . . . . . . . . . . . . . . . . . . Max Security . | . . . . . . . . . . . . . . . . . . Peak Influence 747 | . . . . 143 . . . . 301 282 241 41 569 548 747 411 114 Initial 300 | . . . . . . . . . 300 9 90 41 . 239 177 153 114 Average 217 | . . . . 34 . . . . 225 155 161 24 233 387 464 226 48 Influence Increases 6827 | 5 . . . 624 . . . 30 436 897 384 . 679 1061 1027 1480 204 Destroy 0b10 Robot/C 3220 | . . . . 340 . . . 20 40 560 160 . 280 460 560 660 140 Destroy 0b10 Robot/NC 245 | 5 . . . 25 . . . 10 . 35 10 . 25 25 10 90 10 Destroy Leader 578 | . . . . 74 . . . . 10 44 . . 52 112 104 182 . Allied During Kill 490 | . . . . . . . . . . 104 84 . 119 115 68 . . Successful Hack 73 | . . . . 14 . . . . 21 . 8 . . 12 . 18 . Select Force Hacks 30 | . . . . . . . . . 30 . . . . . . . . Disable Machine 207 | . . . . 36 . . . . 9 . . . 9 99 27 27 . Anti-Garrison Action 500 | . . . . . . . . . . . . . 150 . 150 200 . Destroy Structure 959 | . . . . 75 . . . . 26 94 122 . 44 238 108 243 9 Advance Influence 300 | . . . . . . . . . 300 . . . . . . . . Lose Combat Pursuer 225 | . . . . 60 . . . . . 60 . . . . . 60 45 Influence Decreases 6807 | 5 . . . 529 95 . . 30 414 734 445 123 111 1240 1103 1561 417 Entered New Map 1059 | . . . . . 44 . . . . 13 95 83 1 330 213 161 119 Time Decay 4050 | 5 . . . 529 51 . . 30 200 441 260 40 30 630 740 890 204 Lost Part 776 | . . . . . . . . . 2 60 30 . . 30 50 510 94 Lost Ally 560 | . . . . . . . . . . 220 60 . 80 100 100 . . Purge Threat 362 | . . . . . . . . . 212 . . . . 150 . . . Squads Dispatched 61 | . 1 . . 9 . . . . 5 3 . . 4 9 14 14 2 Investigation 23 | . 1 . . 4 . . . . 4 2 . . 1 2 6 3 . Extermination 12 | . . . . 3 . . . . . . . . . 3 . 5 1 Reinforcement 21 | . . . . 2 . . . . 1 1 . . 1 1 8 6 1 Assault 1 | . . . . . . . . . . . . . 1 . . . . Garrison 4 | . . . . . . . . . . . . . 1 3 . . . Intercept . | . . . . . . . . . . . . . . . . . . Searches Triggered . | . . . . . . . . . . . . . . . . . . Data Miner Redirects 6 | . . . . . . . . . . 2 . . 2 1 . 1 . Construction Impeded 3 | . . . . . . . . . . 1 . . . . . 2 . Haulers Reinforced 4 | . . . . . . . . . . . . . . . 3 1 . Active Scanning Responses . | . . . . . . . . . . . . . . . . . . Cargo Convoy Interrupts . | . . . . . . . . . . . . . . . . . . Stealth | -11 -10 -10 -9 -6 -6 -6 -6 -5 -5 -5 -5 -5 -5 -4 -3 -2 -2 --------- Run | Yrd Mat Sub Scr Fac Low Low Dat Pro Fac Ext Cet Arc Hub Fac Res Res Qua Distress Signals 16 | . 1 . . . . . . . . 1 . . 3 1 7 3 . Communications Jammed . | . . . . . . . . . . . . . . . . . . Distress Signals . | . . . . . . . . . . . . . . . . . . Times Spotted 221 | . 4 4 6 28 1 . . 4 3 29 9 . 5 25 32 57 14 Peak Tracking Total 7 | . 2 2 3 4 1 . . 2 1 5 5 . 2 4 6 7 6 Tactical Retreats 13 | . . . . 4 . . . . . 3 . . . . . 4 2 Traps | -11 -10 -10 -9 -6 -6 -6 -6 -5 -5 -5 -5 -5 -5 -4 -3 -2 -2 ------- Run | Yrd Mat Sub Scr Fac Low Low Dat Pro Fac Ext Cet Arc Hub Fac Res Res Qua Traps Triggered 6 | . . . . 2 . . . . 1 . . . . . . 2 1 Indirectly . | . . . . . . . . . . . . . . . . . . Trap Hack Attempts . | . . . . . . . . . . . . . . . . . . Triggered . | . . . . . . . . . . . . . . . . . . Disarmed . | . . . . . . . . . . . . . . . . . . Reprogrammed . | . . . . . . . . . . . . . . . . . . Reused . | . . . . . . . . . . . . . . . . . . Traps Extracted . | . . . . . . . . . . . . . . . . . . Installed . | . . . . . . . . . . . . . . . . . . Triggered . | . . . . . . . . . . . . . . . . . . Machines | -11 -10 -10 -9 -6 -6 -6 -6 -5 -5 -5 -5 -5 -5 -4 -3 -2 -2 ---------- Run | Yrd Mat Sub Scr Fac Low Low Dat Pro Fac Ext Cet Arc Hub Fac Res Res Qua Machines Disabled 27 | . . . . 4 . 1 . . 1 1 . . 2 11 4 3 . Max in Single Turn 4 | . . . . 1 . 1 . . 1 . . . . 4 1 2 . Garrison Access 4 | . . . . . . . . . 1 . . . 1 . 1 1 . Machines Repaired . | . . . . . . . . . . . . . . . . . . Machines Dismantled . | . . . . . . . . . . . . . . . . . . Machines Sabotaged . | . . . . . . . . . . . . . . . . . . Overloaded Fab Kills . | . . . . . . . . . . . . . . . . . . Hacking | -11 -10 -10 -9 -6 -6 -6 -6 -5 -5 -5 -5 -5 -5 -4 -3 -2 -2 --------- Run | Yrd Mat Sub Scr Fac Low Low Dat Pro Fac Ext Cet Arc Hub Fac Res Res Qua Machines Accessed 42 | . 1 . 2 9 . 1 4 . 6 3 1 . . 4 3 6 2 Terminals 15 | . . . . 3 . . . . 1 2 1 . . 2 1 3 2 Fabricators 5 | . . . . 2 . . . . . . . . . 2 . 1 . Repair Stations 2 | . . . . . . . . . 1 . . . . . 1 . . Recycling Units 10 | . 1 . . 3 . . . . 3 1 . . . . 1 1 . Scanalyzers . | . . . . . . . . . . . . . . . . . . Garrison Access 3 | . . . . 1 . . . . 1 . . . . . . 1 . Total Hacks 108 | . 1 . 7 15 . 1 33 . 13 6 1 . . 9 6 12 4 Successful 71 | . 1 . 7 7 . 1 33 . 8 1 1 . . 4 1 6 1 Failed 37 | . . . . 8 . . . . 5 5 . . . 5 5 6 3 Catastrophic 10 | . . . . . . . . . 2 2 . . . 1 1 3 1 Database Lockouts . | . . . . . . . . . . . . . . . . . . Manual 32 | . . . . 5 . . . . 9 5 1 . . 2 4 4 2 Terminals 34 | . . . . 6 . . . . 4 5 1 . . 5 3 6 4 Fabricators 9 | . . . . 3 . . . . . . . . . 4 . 2 . Repair Stations 4 | . . . . . . . . . 2 . . . . . 2 . . Recycling Units 13 | . 1 . . 3 . . . . 5 1 . . . . 1 2 . Scanalyzers . | . . . . . . . . . . . . . . . . . . Garrison Access 7 | . . . . 3 . . . . 2 . . . . . . 2 . Terminal Hacks 52 | . . . 7 1 . 1 33 . 3 . 1 . . 2 . 3 1 Record 12 | . . . 1 . . . 11 . . . . . . . . . . Part Schematic 12 | . . . . . . . 12 . . . . . . . . . . Robot Schematic 7 | . . . . . . . 7 . . . . . . . . . . Robot Analysis 7 | . . . 6 1 . . . . . . . . . . . . . Prototype ID Bank 3 | . . . . . . . 3 . . . . . . . . . . Open Door 2 | . . . . . . 1 . . . . 1 . . . . . . Branch Access Points 1 | . . . . . . . . . . . . . . . . 1 . Alert Level 5 | . . . . . . . . . 1 . . . . 1 . 2 1 Unreport Threat 3 | . . . . . . . . . 2 . . . . 1 . . . Fabricator Hacks 6 | . . . . 2 . . . . . . . . . 2 . 2 . Network Status 2 | . . . . 2 . . . . . . . . . . . . . Load Schematic 2 | . . . . . . . . . . . . . . 1 . 1 . Build 2 | . . . . . . . . . . . . . . 1 . 1 . Repair Station Hacks 1 | . . . . . . . . . 1 . . . . . . . . Scan Component 1 | . . . . . . . . . 1 . . . . . . . . Recycling Unit Hacks 1 | . 1 . . . . . . . . . . . . . . . . Report Inventory 1 | . 1 . . . . . . . . . . . . . . . . Scanalyzer . | . . . . . . . . . . . . . . . . . . Garrison Access Hacks 1 | . . . . . . . . . 1 . . . . . . . . Seal Access 1 | . . . . . . . . . 1 . . . . . . . . Unauthorized Hacks 10 | . . . . 4 . . . . 3 1 . . . . 1 1 . Terminals . | . . . . . . . . . . . . . . . . . . Fabricators 1 | . . . . 1 . . . . . . . . . . . . . Recompile 1 | . . . . 1 . . . . . . . . . . . . . Repair Stations . | . . . . . . . . . . . . . . . . . . Recycling Units 8 | . . . . 3 . . . . 3 1 . . . . 1 . . Tunnel 1 | . . . . . . . . . 1 . . . . . . . . Fedlink 6 | . . . . 3 . . . . 2 1 . . . . . . . Scrapoids 1 | . . . . . . . . . . . . . . . 1 . . Scanalyzers . | . . . . . . . . . . . . . . . . . . Garrison Access 1 | . . . . . . . . . . . . . . . . 1 . Jam 1 | . . . . . . . . . . . . . . . . 1 . Data Cores Recovered . | . . . . . . . . . . . . . . . . . . Used . | . . . . . . . . . . . . . . . . . . Hacking Detections 25 | . . . . 5 . . . . 4 2 . . . 4 2 6 2 Full Trace Events 6 | . . . . . . . . . . 1 . . . 2 1 2 . Feedback Events 1 | . . . . . . . . . . . . . . . 1 . . Corruption 1 | . . . . . . . . . . . . . . . 1 . . Feedback Blocked . | . . . . . . . . . . . . . . . . . . Robot Schematics Acquired 7 | . . . . . . . 7 . . . . . . . . . . Robots Built . | . . . . . . . . . . . . . . . . . . Authchips . | . . . . . . . . . . . . . . . . . . Time . | . . . . . . . . . . . . . . . . . . Total Robot Build Rating . | . . . . . . . . . . . . . . . . . . Part Schematics Acquired 12 | . . . . . . . 12 . . . . . . . . . . Parts Built 2 | . . . . . . . . . . . . . . 1 . 1 . Authchips . | . . . . . . . . . . . . . . . . . . Time 175 | . . . . . . . . . . . . . . 58 . 117 . Total Part Build Rating 14 | . . . . . . . . . . . . . . 7 . 7 . Parts Repaired . | . . . . . . . . . . . . . . . . . . Time . | . . . . . . . . . . . . . . . . . . Parts Recycled . | . . . . . . . . . . . . . . . . . . Recycled Matter . | . . . . . . . . . . . . . . . . . . Retrieved Matter . | . . . . . . . . . . . . . . . . . . Retrieved Components . | . . . . . . . . . . . . . . . . . . Parts Scanalyzed . | . . . . . . . . . . . . . . . . . . Part Schematics Acquired . | . . . . . . . . . . . . . . . . . . Parts Damaged . | . . . . . . . . . . . . . . . . . . Bothacking | -11 -10 -10 -9 -6 -6 -6 -6 -5 -5 -5 -5 -5 -5 -4 -3 -2 -2 ------------ Run | Yrd Mat Sub Scr Fac Low Low Dat Pro Fac Ext Cet Arc Hub Fac Res Res Qua Used RIF Installer . | . . . . . . . . . . . . . . . . . . Robots Hacked . | . . . . . . . . . . . . . . . . . . Non-combat . | . . . . . . . . . . . . . . . . . . Combat . | . . . . . . . . . . . . . . . . . . Robot Hacks Applied . | . . . . . . . . . . . . . . . . . . Relay Couplers Released 4 | . . . . . . . . . . . . . 1 . 3 . . Machine Destruction 4 | . . . . . . . . . . . . . 1 . 3 . . Fabnet Peak Effective % . | . . . . . . . . . . . . . . . . . . Robots Rewired 18 | . . . . . . . . . . 16 . . . 2 . . . Allies Hacked 1 | . . . . . . . . . . . . . . 1 . . . Hacks Repelled . | . . . . . . . . . . . . . . . . . . Allies | -11 -10 -10 -9 -6 -6 -6 -6 -5 -5 -5 -5 -5 -5 -4 -3 -2 -2 -------- Run | Yrd Mat Sub Scr Fac Low Low Dat Pro Fac Ext Cet Arc Hub Fac Res Res Qua Total Allies 36 | . . . . . . . . . . 24 5 . . 2 5 . . Largest Group 17 | . . . . . . . . . . 13 17 15 14 6 5 . . Highest-Rated Group 961 | . . . . . . . . . . 521 961 909 750 244 320 . . Highest-Rated Ally 159 | . . . . . . . . . . 159 159 159 96 96 64 . . Total Orders . | . . . . . . . . . . . . . . . . . . Ally Attacks 389 | . . . . . . . . . . 148 38 . 75 64 64 . . Total Damage 8944 | . . . . . . . . . . 2623 971 . 2488 1038 1824 . . Kills 67 | . . . . . . . . . . 23 7 . 19 10 8 . . Allies Corrupted 1 | . . . . . . . . . . . . . . 1 . . . Allies Melted . | . . . . . . . . . . . . . . . . . . Intel | -11 -10 -10 -9 -6 -6 -6 -6 -5 -5 -5 -5 -5 -5 -4 -3 -2 -2 ------- Run | Yrd Mat Sub Scr Fac Low Low Dat Pro Fac Ext Cet Arc Hub Fac Res Res Qua Active Infowar (turns) 12357 | 9 143 284 1373 2046 468 262 117 521 436 988 538 82 119 1274 1494 1737 466 Optics 10496 | . . . . 1994 468 262 117 521 436 988 538 82 119 1274 1494 1737 466 Sensors 310 | . . . . . . . . . . . . . . . . 310 . IFF 803 | . . . . . . . . . . . . . . 781 22 . . Terrain 343 | . . . . . . . . . . . . . . . . 150 193 Structural 4491 | . . . . 2046 468 262 117 521 436 641 . . . . . . . Seismic 8809 | 9 143 284 1373 2045 468 262 117 521 436 988 538 82 119 1273 151 . . Cloaking 881 | . . . . . . . . . . . . . . . . 881 . Robot Analysis Total 7 | . . . 6 1 . . . . . . . . . . . . . Derelict Logs Recovered 6 | . . . 2 . 1 1 . 2 . . . . . . . . . Drone Launches . | . . . . . . . . . . . . . . . . . . Drone Recoveries . | . . . . . . . . . . . . . . . . . . Exploration | -11 -10 -10 -9 -6 -6 -6 -6 -5 -5 -5 -5 -5 -5 -4 -3 -2 -2 ------------- Run | Yrd Mat Sub Scr Fac Low Low Dat Pro Fac Ext Cet Arc Hub Fac Res Res Qua Turns Passed 12529 | 76 143 284 1417 2051 468 262 117 521 436 988 538 82 119 1274 1494 1793 466 Spaces Moved 7478 | 50 113 168 850 1041 387 200 97 371 314 515 352 51 78 804 979 910 198 Core 3 | 3 . . . . . . . . . . . . . . . . . Treads 467 | . . . . . . . . . . . . . . . . 292 175 Legs 7008 | 47 113 168 850 1041 387 200 97 371 314 515 352 51 78 804 979 618 23 Wheels . | . . . . . . . . . . . . . . . . . . Hover . | . . . . . . . . . . . . . . . . . . Flight . | . . . . . . . . . . . . . . . . . . Fastest Speed 50 | 50 120 120 120 120 121 121 121 121 121 120 120 120 120 120 120 112 135 Average Speed 127 | 115 120 120 146 120 121 121 121 121 121 120 120 120 120 120 128 132 165 Slowest Speed 260 | 120 120 120 190 121 121 121 121 121 122 122 120 120 120 120 135 250 260 Overloaded Moves . | . . . . . . . . . . . . . . . . . . Propulsion Burnouts . | . . . . . . . . . . . . . . . . . . Robots Hopped . | . . . . . . . . . . . . . . . . . . Potential Cave-ins . | . . . . . . . . . . . . . . . . . . Cave-ins Triggered . | . . . . . . . . . . . . . . . . . . Teleports 1 | . . . . . . . . . . . . . . . . . 1 Exploration Rate (%) 42 | 4 21 14 65 33 64 43 75 61 15 78 90 78 12 30 42 27 16 Regions Visited 17 Branch Regions 11 Pre-discovered Areas 5 | . . . 1 1 . 1 1 . 1 . . . . . . . . Known Exits Taken 3 | . . . . . 1 . . . 1 . . . . . . 1 . Unknown Exits Taken 14 | 1 1 1 1 1 . 1 1 1 . 1 1 1 1 1 1 . . Scrap Searched 9 | . . . 7 . 2 . . . . . . . . . . . . Spaces Dug 71 | . . . . 13 . 7 . 4 9 . . . . 16 8 14 . Terrain Destroyed 614 | 2 . . 49 78 . 11 . 14 14 27 151 . . 122 43 100 3 Melee . | . . . . . . . . . . . . . . . . . . Projectile 212 | . . . 4 28 . 11 . 14 14 7 . . . 34 28 69 3 AOE 402 | 2 . . 45 50 . . . . . 20 151 . . 88 15 31 . Terrain Rammed . | . . . . . . . . . . . . . . . . . . Walls Destroyed . | . . . . . . . . . . . . . . . . . . Machines Disabled . | . . . . . . . . . . . . . . . . . . Actions | -11 -10 -10 -9 -6 -6 -6 -6 -5 -5 -5 -5 -5 -5 -4 -3 -2 -2 --------- Run | Yrd Mat Sub Scr Fac Low Low Dat Pro Fac Ext Cet Arc Hub Fac Res Res Qua Total 9706 | 59 118 232 1010 1749 388 209 96 417 342 798 449 72 98 1023 1136 1220 290 Wait 1356 | . . 50 138 637 . . . 32 5 87 76 22 17 128 51 80 33 Move 7461 | 49 112 167 849 1040 386 199 96 370 313 514 351 50 77 803 978 909 198 Hop . | . . . . . . . . . . . . . . . . . . Pick Up 59 | . 5 2 5 6 1 . . . 2 5 3 . . 3 11 14 2 Fast Attach 67 | 7 . 1 2 2 . 2 . . 1 6 . . . 5 7 21 13 Attach 65 | . . 1 . 7 . . . . 2 2 4 . . 3 9 32 5 Detach 5 | . . . . . . . . . . . . . . 2 2 . 1 Swap 78 | . . . 5 7 . . . 1 2 13 2 . 2 14 16 16 . Drop 65 | . . 1 6 . 1 2 . 1 2 13 2 . . 8 19 9 1 Fire 420 | 3 1 10 5 50 . 6 . 13 15 42 11 . 2 48 43 134 37 Melee . | . . . . . . . . . . . . . . . . . . Ram . | . . . . . . . . . . . . . . . . . . Kick 6 | . . . . . . . . . . . . . . 2 . 4 . Crush 1 | . . . . . . . . . . . . . . . . 1 . Escape Stasis . | . . . . . . . . . . . . . . . . . . Rewire 123 | . . . . . . . . . . 116 . . . 7 . . . Trap . | . . . . . . . . . . . . . . . . . . Miscellaneous . | . . . . . . . . . . . . . . . . . . Route ------- -11/Scrapyard -10/Materials -10/Subcaves (discovered 2 exits: [*Mat] / *Scr) -9/Scraptown (discovered 2 exits: *Fac x2) -6/Factory (discovered 2 exits: *Fac / [*Low]) -6/Lower Caves -6/Lower Caves -6/Data Miner -5/Proximity Caves -5/Factory (discovered 2 exits: *Ext x2) -5/Extension (discovered 3 exits: *Fac x2 / *Cet) -5/Cetus (discovered 2 exits: *Fac / [*Arc]) -5/Archives (discovered 2 exits: [*Hub x2]) -5/Hub_04(d) -4/Factory -3/Research -2/Research (discovered 2 exits: *Qua x2) -2/Quarantine History --------- Turn | Location | Event 4 | -11/Scrapyard | Discovered new exit (range 15) 77 | -11/Scrapyard | Entered Materials 78 | -10/Materials | Met a group of wandering Federalists 211 | -10/Materials | Discovered new exit (range 8) 220 | -10/Materials | Entered Subcaves 221 | -10/Subcaves | Continued accompanying wandering Federalists (5) 242 | -10/Subcaves | Shifting Twisted Machinery released Barrage Gun 258 | -10/Subcaves | Shifting Twisted Machinery released Battle Rifle 288 | -10/Subcaves | Discovered new exit (range 9) 314 | -10/Subcaves | Build established: Mutant 434 | -10/Subcaves | Ambushed by Subdweller buried in earth 460 | -10/Subcaves | Wandering Federalist uncovered a shortcut to Scraptown 463 | -10/Subcaves | Lost 7 allies 504 | -10/Subcaves | Entered Scraptown 556 | -9/Scraptown | Learned location of Extension (-5) 576 | -9/Scraptown | Heard Great Nut preacher, LISTEN AND RECITE! 689 | -9/Scraptown | Discovered new exit (range 11) 749 | -9/Scraptown | Scanned Subdweller tech in exchange for log data 753 | -9/Scraptown | Learned Research emergency access door positions 754 | -9/Scraptown | Learned Factory interactive machine intel 826 | -9/Scraptown | Visited Bundlers 929 | -9/Scraptown | Visited Junk Repository 946 | -9/Scraptown | Visited UFD Registry 946 | -9/Scraptown | Registered with UFD as "Protomaster" 979 | -9/Scraptown | Visited Chapter 10 1017 | -9/Scraptown | Visited Science Guys 1041 | -9/Scraptown | Visited Scrapoid Research Area 1067 | -9/Scraptown | Visited Junk Repository 1084 | -9/Scraptown | Visited Cartography Club 1123 | -9/Scraptown | Visited Analyses Database 1151 | -9/Scraptown | Visited Supply Room 1207 | -9/Scraptown | Visited Abandonware Association 1231 | -9/Scraptown | Visited DA-N13 Charitable Foundation 1248 | -9/Scraptown | Found DCF Scrap (27 items) 1358 | -9/Scraptown | Visited Curators Association 1449 | -9/Scraptown | Met Optimus 1449 | -9/Scraptown | Accepted into 0bPrime 1556 | -9/Scraptown | Discovered new exit (range 5) 1849 | -9/Scraptown | Civil war broke out across Scraptown 1906 | -9/Scraptown | Found Deep Structural Scanner 1921 | -9/Scraptown | Entered Factory 1921 | -6/Factory | Evolved 8 slots: Power x1, Propulsion x4, Utility x3 1922 | -6/Factory | Loaded intel: 52 interactive machine locations 2217 | -6/Factory | Build established: Scavenger-Mutant 3029 | -6/Factory | Discovered new exit (range 8) 3314 | -6/Factory | Loaded intel: 8 recycling unit locations 3478 | -6/Factory | Learned location of Protoforge (-2) 3699 | -6/Factory | Build established: Mutant 3935 | -6/Factory | Discovered new exit (range 11) 3972 | -6/Factory | Entered Lower Caves 3973 | -6/Lower Caves | Encountered a Warlord checkpoint 4257 | -6/Lower Caves | Identified exit to Lower Caves 4440 | -6/Lower Caves | Entered another Lower Caves area 4681 | -6/Lower Caves | Discovered new exit (range 16) 4702 | -6/Lower Caves | Entered Data Miner 4702 | -6/Data Miner | Discovered new exit (range 6) 4718 | -6/Data Miner | Met Data Miner 4758 | -6/Data Miner | Learned location of Section 7 (-2) 4758 | -6/Data Miner | Acquired the access code to Warlord's prototype stash 4781 | -6/Data Miner | Received God Mode back door access code from Data Miner 4819 | -6/Data Miner | Entered Proximity Caves 4822 | -5/Proximity Caves | Spotter reported a threat 4825 | -5/Proximity Caves | Spotter reported a threat 5104 | -5/Proximity Caves | Learned Factory interactive machine intel 5282 | -5/Proximity Caves | Learned 8 Factory zone layouts 5297 | -5/Proximity Caves | Attracted the attention of an 0b10 checkpoint 5311 | -5/Proximity Caves | Discovered new exit (range 17) 5335 | -5/Proximity Caves | Spotted B-75 Beast 5340 | -5/Proximity Caves | Entered Factory 5340 | -5/Factory | Evolved 2 slots: Propulsion x1, Utility x1 5341 | -5/Factory | Identified exit to Extension 5342 | -5/Factory | Loaded intel: 55 interactive machine locations 5473 | -5/Factory | Loaded intel: 8 recycling unit locations 5766 | -5/Factory | Lost 3 parts (1p2n) 5776 | -5/Factory | Entered Extension 5828 | -5/Extension | Rescued a captive Derelict 5905 | -5/Extension | Rescued a captive Derelict 6154 | -5/Extension | Loaded intel: 1 recycling unit location 6166 | -5/Extension | Spotted B-75 Beast 6171 | -5/Extension | Incoming investigation squad redirected 6172 | -5/Extension | Rescued a captive Derelict 6185 | -5/Extension | Incoming investigation squad redirected 6205 | -5/Extension | Destroyed B-75 Beast 6237 | -5/Extension | Discovered new exit (range 20) 6239 | -5/Extension | Spotted B-75 Beast 6263 | -5/Extension | Allies destroyed B-75 Beast 6302 | -5/Extension | Lost 3 parts (3n) 6314 | -5/Extension | Lost 7 allies 6375 | -5/Extension | Rescued a captive Derelict 6377 | -5/Extension | Rescued a captive Derelict 6388 | -5/Extension | Rescued a captive Derelict 6389 | -5/Extension | Rescued a captive Derelict 6417 | -5/Extension | Rescued A7 6425 | -5/Extension | Rescued a captive Derelict 6589 | -5/Extension | Build established: Scavenger-Mutant 6711 | -5/Extension | Discovered new exit (range 10) 6712 | -5/Extension | Discovered new exit (range 6) 6764 | -5/Extension | Entered Cetus 6764 | -5/Cetus | Accompanied by 13 allies (A7) 6769 | -5/Cetus | Acquired a Cetus Manufacturing Module code from A7 6779 | -5/Cetus | Spotted Cetus Guard 6779 | -5/Cetus | Spotted Cetus Guard 6781 | -5/Cetus | Spotted Cetus Guard 6782 | -5/Cetus | Spotted Cetus Guard 6791 | -5/Cetus | Destroyed Cetus Guard 6800 | -5/Cetus | Allies destroyed Cetus Guard 6804 | -5/Cetus | Allies destroyed Cetus Guard 6807 | -5/Cetus | Allies destroyed Cetus Guard 6904 | -5/Cetus | Started Cetus Manufacturing Module 6916 | -5/Cetus | Escorted A7 to Cetus Mainframe 6929 | -5/Cetus | Manufactured an Enhanced Grunt 6954 | -5/Cetus | Manufactured an Enhanced Grunt 6979 | -5/Cetus | Manufactured an Enhanced Grunt 7004 | -5/Cetus | Manufactured an Enhanced Grunt 7029 | -5/Cetus | Manufactured an Enhanced Grunt 7064 | -5/Cetus | Discovered new exit (range 21) 7131 | -5/Cetus | Spotted Cetus Guard 7133 | -5/Cetus | Spotted Cetus Guard 7134 | -5/Cetus | Spotted Cetus Guard 7135 | -5/Cetus | Spotted Cetus Guard 7141 | -5/Cetus | Allies destroyed Cetus Guard 7154 | -5/Cetus | Allies destroyed Cetus Guard 7154 | -5/Cetus | Allies destroyed Cetus Guard 7155 | -5/Cetus | Allies destroyed Cetus Guard 7157 | -5/Cetus | Discovered new exit (range 22) 7172 | -5/Cetus | Met Revision 17 7180 | -5/Cetus | Lost 3 parts (1p1n1w) 7226 | -5/Cetus | Build established: Commander-Mutant 7302 | -5/Cetus | Entered Archives 7302 | -5/Archives | Accompanied by 15 allies (A7) 7307 | -5/Archives | Received a hacking code to weaken MAIN.C 7318 | -5/Archives | Met Zhirov 7320 | -5/Archives | Discovered new exit (range 22) 7324 | -5/Archives | Reinforcements dispatched to Archives 7331 | -5/Archives | Discovered new exit (range 20) 7369 | -5/Archives | Reinforcements dispatched to Archives 7384 | -5/Archives | Entered Hub_04(d) 7384 | -5/Hub_04(d) | Accompanied by 14 allies 7424 | -5/Hub_04(d) | Garrison activated, responded to threat 7450 | -5/Hub_04(d) | Discovered new exit (range 7) 7453 | -5/Hub_04(d) | Incoming assault squad redirected 7481 | -5/Hub_04(d) | Incoming assault squad redirected 7503 | -5/Hub_04(d) | Entered Factory 7503 | -4/Factory | Accompanied by 6 allies 7503 | -4/Factory | Evolved 2 slots: Utility x2 7660 | -4/Factory | Fabricated Micro-nuke Launcher (x1) 7756 | -4/Factory | Build established: Scavenger-Mutant 7808 | -4/Factory | Incoming investigation squad redirected 8108 | -4/Factory | Garrison activated, responded to threat 8640 | -4/Factory | Spotted B-86 Titan 8704 | -4/Factory | Discovered new exit (range 14) 8777 | -4/Factory | Entered Research 8777 | -3/Research | Evolved 2 slots: Utility x1, Weapon x1 8853 | -3/Research | Found Prototype Device 8929 | -3/Research | Identified Exp. Thermal Shield 8968 | -3/Research | Scrapoid reinforcements arrived 8977 | -3/Research | Revision forces began assault on 0b10 9080 | -3/Research | Met up with Revision 17++ 9104 | -3/Research | Destroyed 7 combat bots 9104 | -3/Research | Lost 5 allies 9234 | -3/Research | Build established: Scavenger-Tank 9477 | -3/Research | Research terminal network offline 9614 | -3/Research | Build established: Hacker-Tank 9643 | -3/Research | Found Imp. Powered Armor 10047 | -3/Research | Spotted Striker 10065 | -3/Research | Destroyed Striker 10227 | -3/Research | Discovered new exit (range 19) 10271 | -3/Research | Entered another Research area 10271 | -2/Research | Evolved 2 slots: Utility x2 10304 | -2/Research | Identified exit to Quarantine 10438 | -2/Research | Spotted B-90 Cyclops 10804 | -2/Research | Spotted B-90 Cyclops 10853 | -2/Research | Fabricated Micro-nuke Launcher? 11015 | -2/Research | Lost 5 parts (2n2u1w) 11079 | -2/Research | Lost 3 parts (1n2w) 11237 | -2/Research | System corruption reached 10% 11328 | -2/Research | Lost 18 parts (2p7n5u4w) 11502 | -2/Research | Lost 5 parts (2p1n2u) 11628 | -2/Research | System corruption reached 30% 11720 | -2/Research | Incoming investigation squad redirected 11840 | -2/Research | Lost 3 parts (1p1u1w) 11927 | -2/Research | Lost 4 parts (2p2n) 11968 | -2/Research | Spotted B-90 Cyclops 11973 | -2/Research | Core integrity fell below 50% 12064 | -2/Research | Entered Quarantine 12084 | -2/Quarantine | Found Alien Artifact 12084 | -2/Quarantine | Identified Core Reset Matrix 12084 | -2/Quarantine | Used Core Reset Matrix 12088 | -2/Quarantine | Detected hypermatrix surge 12088 | -2/Quarantine | Sensed 14 artifacts in vicinity 12092 | -2/Quarantine | Lost 9 parts (3p2n2u2w) 12105 | -2/Quarantine | Build established: Mutant 12173 | -2/Quarantine | Found Unknown Device 12173 | -2/Quarantine | Identified Quantum Capacitor 12257 | -2/Quarantine | Found Transdimensional Reconstructor 12257 | -2/Quarantine | Warped through subspace 12338 | -2/Quarantine | Lost 4 parts (3u1w) 12386 | -2/Quarantine | Core integrity fell below 20% 12494 | -2/Quarantine | Lost 8 parts (3p2n3w) 12530 | -2/Quarantine | Self-destructed Last Messages --------------- R-10 Processor collects Adv. Heat Sink. X-82 Rainmaker knocked back. P-80 Master destroyed. X-82 Rainmaker destroyed. R-10 Processor collects Unknown Hover Unit. Acquired Mic. Antimatter Reactor. R-10 Processor collects Gamma Rifle. Acquired 41 matter. R-10 Processor collects Sml. Battery. R-10 Processor knocked back. System corrupted: Hvy. Flak Cannon fused. R-10 Processor knocked back. Acquired 95 matter. ALERT: Potential suspicious activity detected, Programmers report to Quarantine Zone 6T. Acquired 63 matter. Acquired 43 matter. Acquired Gamma Rifle. Acquired 5 matter. Hvy. Flak Cannon destroyed. Map ----- +----------------------------------------------------+ | | | | | | | | | | | | | | | | | | | | | | | | | | | | | | | | | ?????????????????????????????????????????????????? | | ?????????????????????????????????????????????????? | | ??????????????????????#####??????????????????????? | | ??????????????????????# #??????????????????????? | | ??????????????????????# #??????????????????????? | | ?????????????????????## ###????????????????????? | | ?????????????????????# p ?????????????????????? | | ?????????????????????# p#??????????????????????? | | ?????????????????????# #??????????????????????? | | ?????????????????????# @#??????????????????????? | | ????????????????????## #??????????????????????? | | ???????????#####??#### #??????????????????????? | | ???????????# #??# #??????????????????????? | | ???????????# #?## #####+###????????????????????? | | ????######## ####%#?# !#????????????????????? | | ???# ^ %^% ! ! #?# =#????????????????????? | | ???# %#####%#?# = #????????????????????? | | ???# ????#=#?# " " #????????????????????? | | ???# #######????#!#?# "T" #????????????????????? | | ???# ????????????#+#?# """ #????????????????????? | | ???#?????????????? ?# #????????????????????? | | ?????????????????? ?#######????????????????????? | | ??????????????????"" ????????????????????????????? | | ??????????????????""" ???????????????????????????? | | ?????????????????? S" ???????????????????????????? | | ??????????????????""" ???????????????????????????? | | ????????????????? """ #??????????????????????????? | | ????????????????? #???#??????????????????????? | | ??????????#######/#####??????????????????????????? | | ??????????? #?#?????????????????????????? | | ????????????? ########????????????????????? | | ?????????????? # ""!!#????????????????????? | | ???????????????? # ""!##???????????????????? | | ??????############ # ""#????????????????????? | +----------------------------------------------------+ Best States ------------- Heat Dissipation 87 Energy Generation 41 Energy Capacity 590 Matter Stores 550 Matter Capacity 550 Sight Range 22 Robot Scan Range 16 Terrain Scan Range 14 Terrain Scan Density 10 Cloak Strength 3 Base Temperature (-) 150 Armor Coverage 225 Resistance: KI 20 Resistance: TH 50 Resistance: EX 20 Resistance: EM 20 Resistance: I 20 Resistance: S 20 Resistance: P 20 Core Shielding 30 Utility Shielding 66 Evasion (%) 70 Targeting Accuracy 8 Target Analysis 8 Recoil Reduction 12 Matter Filtering 30 Energy Filtering 30 Offensive Hacking 20 Item Schematics ----------------- None Robot Schematics ------------------ None Fabricated ------------ Micro-nuke Launcher | x1 | -4/Factory Micro-nuke Launcher | x1 | -2/Research Repaired ---------- Nothing Alien Tech Used ----------------- Core Reset Matrix Transdimensional Reconstructor Achievements -------------- Sniper Challenges ------------ None Game ------ Seed AlphaGravmagNanosword Manual? 0 Play Time 02:01:53 Cumulative 156.7 hours Start 2025.10.05 @ 21:50:26 End 2025.10.06 @ 17:42:02 Sessions 19 Manual Loads 0 Difficulty Adventurer Special Mode None Game No. 125 Rogue 0 Adventurer 125 Explorer 0 Win Type - Total 4 Types 3/0/0/1/0/0/0/0/0/0 Lore% 63 Gallery% 62 Achievement% 58 Wizard Run 0 Options --------- Layout 1 ASCII 0 Keyboard 0 Movement Mouse Keybinds 0 Fullscreen 1 Font 24/Smallcaps Map View 50x35 Zoom Use 0% Tactical HUD 0 Map Filters NONE Filters NONE Steam 1 RUN: 90b9ce4d-35db-4a59-8ac4-1807e54b946b